[Event "Khanty-Mansiysk FIDE GP"]
[Site "Khanty-Mansiysk"]
[Date "2015.05.26"]
[Round "11"]
[White "Nakamura, Hikaru"]
[Black "Jakovenko, Dmitrij"]
[Result "1/2-1/2"]
[ECO "E32"]
[WhiteElo "2799"]
[BlackElo "2738"]
[Annotator "ChessBase II"]
[PlyCount "75"]
[EventDate "2015.05.14"]
[EventType "tourn"]
[EventRounds "11"]
[EventCountry "RUS"]
[EventCategory "21"]
[SourceTitle "CBM 167"]
[Source "ChessBase"]
[SourceDate "2015.07.13"]
[SourceVersion "1"]
[SourceVersionDate "2015.07.13"]
[SourceQuality "1"]
[TimeControl "40/7200:20/3600:900+30"]

1. d4 {[%emt 0:00:03] Everyone's focus was clearly on this game. Jakovenko needed to win to guarantee his spot on the Candidates, while a draw required a series of highly unlikely and borderline miraculous results for him to qualify. Nakamura came into the game with a very sound and clear strategy: play solid, trade everything, draw. This is basically what happened in the game as Jakovenko simply could not create enough complications.} Nf6 {[%emt 0:00:05]} 2. c4 {[%emt 0:00:05]} e6 {[%emt 0:00:04]} 3. Nc3 {[%emt 0:00:05]} Bb4 {[%emt 0:00:06]} 4. Qc2 {[%emt 0:00:04]} d6 {[%emt 0:03:18]} 5. a3 {[%emt 0:00:39]} Bxc3+ {[%emt 0:00:06]} 6. Qxc3 {[%emt 0:00:04]} O-O {[%emt 0:00:54]} 7. Bg5 {[%emt 0:02:06]} Nbd7 {[%emt 0:01:21]} 8. e3 {[%emt 0:00:50]} b6 {[%emt 0:04:46]} 9. Ne2 {[%emt 0:01:17]} Ba6 {[%emt 0:05:16]} ({RR} 9... Bb7 10. Qc2 c5 11. Rd1 Qc7 12. Nc3 a6 13. Bd3 h6 14. Bxf6 Nxf6 15. O-O Rac8 16. d5 exd5 17. cxd5 b5 18. Bf5 Rce8 19. Rd2 Re5 20. e4 g6 21. f4 Ree8 22. e5 dxe5 23. fxe5 Qxe5 24. Bxg6 {Korchynskyi,M (2263)-Zhigalko,S (2572) chess.com INT 2024 0-1 (31)}) ({RR} 9... Bb7 10. Qd3 Be4 11. Qd2 Bg6 12. Nc3 e5 13. Be2 Re8 14. O-O h6 15. Bh4 Ne4 16. Bxd8 Nxd2 17. Bxc7 exd4 18. exd4 Rxe2 19. Nxe2 Nxf1 20. Kxf1 Rc8 21. Bxd6 Rxc4 22. Rc1 Rxc1+ 23. Nxc1 f6 24. Na2 {Nakamura,H (2601)-Benjamin,J (2566) New York 2004 ½-½ (71)}) 10. Rd1 {[%emt 0:04:32]} ({RR} 10. Qc2 c5 11. Rd1 h6 12. Bh4 Rc8 13. Qa4 Bb7 14. Nc3 cxd4 15. Rxd4 Nc5 16. Qd1 Qe7 17. b4 Ncd7 18. Nb5 d5 19. cxd5 Bxd5 20. Nxa7 Ra8 21. Nb5 Ne5 22. e4 Bc6 23. Bg3 Nfd7 24. Be2 f5 {Gelfand,B (2736)-Kramnik,V (2785) Moscow 2007 ½-½ (38)}) 10... h6 $146 {[%emt 0:06:45]} (10... Rc8 11. Qc2 c5 12. Qa4 Bb7 13. Nc3 a6 14. Be2 Bxg2 15. Rg1 Bc6 16. Qc2 Kh8 17. d5 exd5 18. cxd5 Bb7 19. Bg4 Rc7 20. Bxd7 Qxd7 21. Bxf6 gxf6 22. Ne4 Qf5 23. Qc3 Rg8 24. Rxg8+ Kxg8 25. Nxf6+ Kf8 26. e4 Qf4 27. Rd3 Ke7 28. Rf3 Qxh2 29. Ke2 Qh4 30. e5 Rc8 31. Rf5 Re8 32. exd6+ Kd8+ 33. Nxe8 Qe4+ 34. Qe3 Qc2+ 35. Kf1 Qd1+ 36. Qe1 Qxe1+ 37. Kxe1 Kxe8 38. d7+ Kd8 39. Rxf7 Bxd5 40. Rf6 {Jojua,D (2579)-Sanal,V (2460) Jerusalem 2015 1-0}) ({RR} 10... Qe7 11. Qc2 h6 12. Bh4 Bb7 13. Nc3 g5 14. Bg3 Nh5 15. f3 e5 16. Bf2 f5 17. Be2 Ng7 18. dxe5 Qxe5 19. Nd5 c6 20. f4 Qe4 21. Qxe4 fxe4 22. Nc3 gxf4 23. exf4 Nf6 24. g4 d5 25. cxd5 {Grigore,G (2476)-Grecescu,G (2396) Mamaia 2012 1-0 (40)}) ({RR} 10... Rc8 11. Qc2 c5 12. Qa4 Bb7 13. Nc3 a6 14. Be2 Bxg2 15. Rg1 Bc6 16. Qc2 Kh8 17. d5 exd5 18. cxd5 Bb7 19. Bg4 Rc7 20. Bxd7 Qxd7 21. Bxf6 gxf6 22. Ne4 Qf5 23. Qc3 Rg8 24. Rxg8+ Kxg8 25. Nxf6+ {Jojua,D (2579)-Sanal,V (2460) Jerusalem 2015 1-0 (41)}) 11. Bxf6 {[%emt 0:06:06]} Nxf6 {[%emt 0:03:10]} 12. Ng3 {[%emt 0:00:06]} c5 {[%emt 0:03:53]} 13. Be2 {[%emt 0:01:53]} Qc7 {[%emt 0:03:52]} 14. O-O {[%emt 0:00:55]} Rac8 {[%emt 0:00:31]} 15. Rc1 {[%emt 0:13:35]} cxd4 {[%emt 0:08:17]} 16. Qxd4 {[%emt 0:00:26]} Rfd8 {[%emt 0:00:21]} 17. Qd2 {[%emt 0:00:22]} Qb8 {[%emt 0:02:15]} 18. Rfd1 {[%emt 0:01:24]} d5 {[%emt 0:05:19]} 19. cxd5 {[%emt 0:00:42]} Rxd5 {[%emt 0:02:18]} 20. Qe1 {[%emt 0:00:05]} Rxc1 {[%emt 0:11:06]} 21. Rxc1 {[%emt 0:00:08]} Bxe2 {[%emt 0:00:07]} 22. Qxe2 {[%emt 0:03:53]} Qd8 {[%emt 0:04:42]} 23. h3 {[%emt 0:04:15]} Rd3 {[%emt 0:05:35]} 24. Nh5 {[%emt 0:05:17]} Nxh5 {[%emt 0:02:50]} 25. Qxh5 {[%emt 0:00:18]} Rd2 {[%emt 0:00:15]} 26. Qe5 {[%emt 0:03:46]} Rxf2 {[%emt 0:16:08]} 27. Kxf2 {[%emt 0:00:14]} Qd2+ {[%emt 0:00:04]} 28. Kf3 {[%emt 0:00:02]} Qxc1 {[%emt 0:00:05]} 29. Qb8+ {[%emt 0:00:02]} Kh7 {[%emt 0:00:07]} 30. Qxa7 {[%emt 0:00:01]} Qf1+ {[%emt 0:08:14]} 31. Kg3 {[%emt 0:00:23]} Qe1+ {[%emt 0:00:35]} 32. Kh2 {[%emt 0:00:54]} Qxe3 {[%emt 0:01:31]} 33. Qxf7 {[%emt 0:00:05]} b5 {[%emt 0:00:34]} 34. Qd7 {[%emt 0:03:50]} Qf4+ {[%emt 0:02:06]} 35. Kg1 {[%emt 0:00:09]} Qc1+ {[%emt 0:00:07]} 36. Kh2 {[%emt 0:00:05]} Qf4+ {[%emt 0:00:03]} 37. Kg1 {[%emt 0:00:06]} Qc4 {[%emt 0:00:10]} 38. Qd1 {[%emt 0:03:14]} 1/2-1/2

[Event "Paris FIDE GP"]
[Site "Elancourt"]
[Date "2013.10.02"]
[Round "9"]
[White "Nakamura, Hikaru"]
[Black "Ponomariov, Ruslan"]
[Result "1/2-1/2"]
[ECO "E37"]
[WhiteElo "2772"]
[BlackElo "2756"]
[Annotator "ChessBase Website"]
[PlyCount "93"]
[EventDate "2013.09.22"]
[EventType "tourn"]
[EventRounds "11"]
[EventCountry "FRA"]
[EventCategory "20"]
[SourceTitle "CBM 157"]
[Source "ChessBase"]
[SourceDate "2013.11.12"]
[SourceVersion "1"]
[SourceVersionDate "2013.11.12"]
[SourceQuality "1"]
[TimeControl "40/7200:20/3600:900+30"]
[WhiteClock "2:00:00"]
[BlackClock "2:00:00"]

1. d4 {[%emt 0:00:03]} Nf6 {[%emt 0:00:07]} 2. c4 {[%emt 0:00:04]} e6 {[%emt 0:00:08]} 3. Nc3 {[%emt 0:00:20]} Bb4 {[%emt 0:00:14]} 4. Qc2 {[%emt 0:00:04]} d5 {[%emt 0:00:49]} 5. a3 {[%emt 0:00:18]} Bxc3+ {[%emt 0:00:28]} 6. Qxc3 {[%emt 0:00:09]} Ne4 {[%emt 0:00:18]} 7. Qc2 {[%emt 0:01:05]} c5 {[%emt 0:00:17]} 8. dxc5 {[%emt 0:02:15]} Nc6 {[%emt 0:00:19]} 9. e3 {[%emt 0:04:04]} Qa5+ {[%emt 0:00:56]} 10. Bd2 {[%emt 0:00:09]} Nxd2 {[%emt 0:00:10]} 11. Qxd2 {[%emt 0:00:09]} dxc4 {[%emt 0:01:24]} 12. Qxa5 {[%emt 0:07:36]} Nxa5 {[%emt 0:00:12]} 13. Rc1 {[%emt 0:00:03]} b5 {[%emt 0:02:51]} 14. cxb6 {[%emt 0:01:41]} Bb7 {[%emt 0:06:04]} 15. Nf3 {[%emt 0:17:59]} Ke7 {[%emt 0:11:40]} 16. Nd2 {[%emt 0:01:49] The players followed a long theoretical variation in the Nimzo-Indian. Nakamura played the new moves 16.Nd2 but it is unclear exactly how good this move is} (16. bxa7 Bxf3 17. gxf3 {½-½ Parligras,M (2625)-Adams,M (2733) Bundesliga 1112 2011 (5.1)}) ({RR} 16. bxa7 Bxf3 17. gxf3 Rxa7 18. Rc2 {½-½ (18) Nyzhnyk,I (2576)-Griffith,K (2407) New York USA 2024}) 16... axb6 {[%emt 0:03:07]} 17. Bxc4 {[%emt 0:13:53]} Rhd8 $146 {[%emt 0:30:10]} (17... Nxc4 18. Nxc4 Bxg2 19. Rg1 Be4 20. Nxb6 Rab8 21. Na4 Rhc8 22. Rxc8 Rxc8 23. Nc3 h6 24. Ke2 Bg6 25. Rc1 Bh5+ 26. f3 Rc4 27. Kf2 Rh4 28. Kg3 g5 29. Ne2 Ra4 30. Rc8 Bg6 31. Nc3 Ra6 32. Rc7+ Kd8 33. Rc4 Rd6 34. b4 Rd3 35. b5 Bf5 36. b6 Rd7 37. e4 Bg6 38. a4 f5 39. a5 {1-0 (39) Grigoryan,A (2216)-Kim,V (2047) Nevinomyssk 2009}) (17... Rac8 {Black had the choice of playing as he did in the game or immediately pinning the knight on c4 with 17...ac8, definitely the most logical way of continuing and maybe White would have had to solve a few issues. The continuation in the game gave Ponomariov enough compensation for the pawn and allowed him to simplify into an easily drawn rook endgame.}) ({RR} 17... Nxc4 18. Nxc4 Bxg2 19. Rg1 Be4 20. Nxb6 Rab8 21. Na4 Rhc8 22. Rxc8 Rxc8 23. Nc3 h6 24. Ke2 Bg6 25. Rc1 Bh5+ 26. f3 Rc4 27. Kf2 Rh4 28. Kg3 g5 29. Ne2 Ra4 30. Rc8 Bg6 31. Nc3 Ra6 32. Rc7+ {Grigoryan,A (2216)-Kim,V (2047) Nevinnomyssk 2009 1-0 (39)}) 18. Bb5 {[%emt 0:06:30]} Rac8 {[%emt 0:02:34]} 19. Rc3 {[%emt 0:01:10]} Rxc3 {[%emt 0:05:27]} 20. bxc3 {[%emt 0:00:05]} Rc8 {[%emt 0:00:51]} 21. c4 {[%emt 0:00:04]} Bxg2 {[%emt 0:03:16]} 22. Rg1 {[%emt 0:00:08]} Bd5 {[%emt 0:00:10]} 23. Rg4 {[%emt 0:01:27]} h5 {[%emt 0:05:22]} 24. Rh4 {[%emt 0:00:10]} Bc6 {[%emt 0:05:35]} 25. Rxh5 {[%emt 0:00:36]} Bxb5 {[%emt 0:00:51]} 26. Rxb5 {[%emt 0:00:41]} Nxc4 {[%emt 0:00:28]} 27. Nxc4 {[%emt 0:00:16]} Rxc4 {[%emt 0:00:03]} 28. Rxb6 {[%emt 0:00:06]} Rh4 {[%emt 0:01:43]} 29. Ke2 {[%emt 0:01:07]} Rxh2 {[%emt 0:00:13]} 30. a4 {[%emt 0:00:10]} Rh4 {[%emt 0:03:30]} 31. a5 {[%emt 0:00:08]} Ra4 {[%emt 0:00:09]} 32. a6 {[%emt 0:00:03]} Ra2+ {[%emt 0:03:09]} 33. Kf3 {[%emt 0:01:35]} f5 {[%emt 0:00:57]} 34. Rb7+ {[%emt 0:00:04]} Kf6 {[%emt 0:00:07]} 35. a7 {[%emt 0:00:02]} g5 {[%emt 0:00:08]} 36. Kg3 {[%emt 0:00:13]} Ra3 {[%emt 0:00:32]} 37. f3 {[%emt 0:00:13]} g4 {[%emt 0:01:58]} 38. fxg4 {[%emt 0:00:27]} Rxe3+ {[%emt 0:00:08]} 39. Kf4 {[%emt 0:00:21]} Re4+ {[%emt 0:00:11]} 40. Kf3 {[%emt 0:00:00]} Ra4 {[%emt 0:00:00]} 41. gxf5 {[%emt 0:00:07]} exf5 {[%emt 0:00:32]} 42. Rc7 {[%emt 0:00:05]} Ke5 {[%emt 0:00:16]} 43. Re7+ {[%emt 0:00:05]} Kd6 {[%emt 0:00:07]} 44. Re8 {[%emt 0:00:09]} Rxa7 {[%emt 0:00:06]} 45. Kf4 {[%emt 0:00:04]} Re7 {[%emt 0:00:06]} 46. Rxe7 {[%emt 0:00:04]} Kxe7 {[%emt 0:00:03]} 47. Kxf5 1/2-1/2